[Event "ESP-chT Honor Division 2022"]
[Site "Linares"]
[Date "2022.09.21"]
[Round "5.17"]
[White "Macias Pino, Diego"]
[Black "Trigo Urquijo, Sergio"]
[Result "0-1"]
[ECO "B12"]
[WhiteElo "2381"]
[BlackElo "2402"]
[Annotator "TA"]
[PlyCount "136"]
[EventDate "2022.09.17"]
[EventType "team-tourn"]
[EventCountry "ESP"]
[SourceTitle "playchess.com"]
[Source "ChessBase"]
[SourceQuality "1"]
[TimeControl "5400+30"]

{[%evp 9,136,11,18,7,6,8,13,-18,-14,-6,-7,-5,-8,-9,-1,-2,0,-4,20,0,0,-18,-20,-12,-30,-46,-61,-30,-42,-62,-53,-77,-80,-93,-101,-215,-215,-186,-78,-112,-53,-79,-83,-81,-89,-180,-167,-153,-161,-168,-167,-180,-176,-179,-191,-177,-168,-160,-173,-178,-167,-172,-108,-101,-60,-105,-102,-150,-145,-241,-242,-232,-205,-260,-219,-275,-276,-266,-260,-262,-270,-309,-297,-353,-347,-362,-287,-342,-252,-6175,-5293,-1545,-664,-594,-454,-473,-472,-462,-469,-201,-476,-441,-422,-317,-408,-424,-8,0,0,-383,-379,-854,-819,-1361,-1340,-1368,-1345,-1380,-1114,-1944,-1667,-2044,-1913,-29966,-29968,-29960,-29961,-29987,-29988]} 1. e4 {[%emt 0:00:33]} c6 {[%emt 0:00:36]} 2. d4 {[%emt 0:00:40]} d5 {[%emt 0:00:37]} 3. e5 {[%emt 0:00:05]} Bf5 {[%emt 0:00:31]} 4. h4 {[%emt 0:00:06]} h5 {[%emt 0:00:25]} 5. Bd3 {[%emt 0:00:04]} Bxd3 {[%emt 0:00:31]} 6. Qxd3 {[%emt 0:00:06][%cal Oe5e6] B12: Caro-Kann: Advance Variation.} Qa5+ {[%emt 0:00:57]} 7. Nd2 {[%emt 0:00:43][%cal Oe5e6] Hoping for e6!} e6 {[%emt 0:00:24]} 8. c4 {[%emt 0:01:05] The position is equal.} Nh6 {[%emt 0:05:45]} 9. Ngf3 {[%emt 0:01:36]} Nf5 {[%emt 0:00:47]} 10. O-O {[%emt 0:03:26]} Be7 {[%emt 0:01:36]} 11. g3 {[%emt 0:01:12]} Qa6 {[%emt 0:09:13]} 12. Qc2 {[%emt 0:01:14]} Nd7 {[%emt 0:10:05]} 13. b3 {[%emt 0:01:32]} b6 {[%emt 0:02:05]} 14. Bb2 {[%emt 0:07:34]} Rc8 {[%emt 0:01:29]} 15. Rac1 {[%emt 0:03:12] Black must now prevent cxd5.} O-O {[%emt 0:01:05] [#]} 16. a3 $146 {[%emt 0:02:40]} ({Predecessor:} 16. Rfe1 g6 17. Qb1 Qb7 18. cxd5 cxd5 19. Qd3 b5 20. Nf1 b4 21. Re2 Rxc1 22. Bxc1 Rc8 23. Rc2 Rc6 {½-½ (23) Isha,S (1927)-Tarini,G (2090) Kankarbagh 2017}) 16... Qb7 {[%emt 0:07:25]} 17. Qd3 {[%emt 0:04:47]} c5 {[%emt 0:03:07]} 18. cxd5 {[%emt 0:03:37]} Qxd5 {[%emt 0:00:53]} 19. Qa6 {[%emt 0:02:17]} Qa8 {[%emt 0:06:51] Black is more active.} 20. Rfe1 {[%emt 0:05:39]} Rfd8 {[%emt 0:06:05]} 21. Kh2 {[%emt 0:21:57]} cxd4 {[%emt 0:04:42]} (21... Rb8 {keeps more tension.} 22. Qe2 cxd4 23. Nxd4 Nxe5 24. Nxf5 Ng4+) 22. b4 {[%emt 0:00:50]} (22. Rxc8 $17 Qxc8 23. Qxc8 Rxc8 24. Nxd4) 22... Rxc1 $19 {[%emt 0:07:51]} 23. Rxc1 {[%emt 0:00:12]} Qb8 {[%emt 0:02:03]} (23... Qd5 $19 {and Black stays clearly on top.} 24. Qe2 a5 25. bxa5 bxa5) 24. Qe2 {[%emt 0:03:14]} Nf8 {[%emt 0:00:33]} (24... a5 $17 25. Qb5 Nf8) 25. Qe4 {[%emt 0:01:01][%cal Rf3d4]} d3 {[%emt 0:01:34]} 26. Rc3 {[%emt 0:01:45]} a5 {[%emt 0:01:41]} 27. b5 {[%emt 0:14:30]} (27. Rb3 $17) 27... Rd5 {[%emt 0:02:16]} 28. Rxd3 {[%emt 0:00:35]} Rxb5 {[%emt 0:01:32]} 29. Nc4 {[%emt 0:00:29]} Qc7 {[%emt 0:01:34]} 30. Kg2 {[%emt 0:02:38]} Rc5 {[%emt 0:02:29]} 31. Ne3 {[%emt 0:04:33]} Nxe3+ {[%emt 0:00:29]} 32. Qxe3 {[%emt 0:00:03]} Qc6 {[%emt 0:03:31]} 33. Bd4 {[%emt 0:01:31]} Rd5 {[%emt 0:00:47]} 34. Rc3 {[%emt 0:00:52]} Bc5 {[%emt 0:00:12]} 35. Bxc5 {[%emt 0:00:35]} Rxc5 {[%emt 0:00:09]} (35... bxc5 $19 36. Qe4 Nd7) 36. Rd3 $17 {[%emt 0:00:49]} Rd5 {[%emt 0:03:45] Against Rd6} (36... Nd7 {feels hotter.} 37. Rd6 Qb7 38. Qd3 Rd5) 37. Rc3 {[%emt 0:04:20]} Qb7 {[%emt 0:02:53]} 38. Qc1 {[%emt 0:00:43]} ({White should play} 38. Qe4) 38... Rxe5 $1 {[%emt 0:01:39]} 39. Kg1 {[%emt 0:01:17]} (39. Rc7 $17 Qd5 40. Qc6) 39... Rc5 $19 {[%emt 0:00:28]} 40. Rxc5 {[%emt 0:00:35]} bxc5 {[%emt 0:00:06][%mdl 4096] Endgame KQN-KQN} 41. Qc3 {[%emt 0:00:10]} Qd5 {[%emt 0:02:09]} 42. Nd2 {[%emt 0:01:33]} a4 {[%emt 0:00:21]} 43. Qc2 {[%emt 0:00:17]} Nd7 {[%emt 0:01:54] And now ...Ne5 would win.} 44. Nc4 {[%emt 0:00:50]} Qc6 {[%emt 0:00:56]} 45. Qd1 {[%emt 0:00:25]} g6 {[%emt 0:00:24]} 46. Qc2 {[%emt 0:00:37]} Qb5 {[%emt 0:00:59]} 47. Qe4 {[%emt 0:00:55]} Nf6 {[%emt 0:01:00]} 48. Qf4 {[%emt 0:00:18]} Nd5 {[%emt 0:01:17]} 49. Qxf7+ {[%emt 0:00:24]} (49. Qc1) 49... Kxf7 {[%emt 0:00:11]} 50. Nd6+ {[%emt 0:00:01]} Kf6 {[%emt 0:00:14]} 51. Nxb5 {[%emt 0:00:02] KN-KN} Ke5 {[%emt 0:02:17] ...Ke4 is the strong threat.} 52. Kf1 {[%emt 0:00:50]} Nb6 {[%emt 0:00:22]} 53. Ke2 {[%emt 0:00:34]} Kd5 {[%emt 0:00:08]} 54. Kd3 {[%emt 0:01:05]} c4+ {[%emt 0:00:30]} 55. Kd2 {[%emt 0:00:20]} e5 {[%emt 0:00:52]} 56. f3 {[%emt 0:01:01]} Kc5 {[%emt 0:00:31]} 57. Nc3 {[%emt 0:00:01]} Kd4 {[%emt 0:00:28]} (57... Nd5 $1 $19 {[%cal Rd5c3] ( -> ...Nxc3)} 58. Nxa4+ Kd4) 58. Ne2+ $11 {[%emt 0:01:00]} Kc5 $2 {[%emt 0:00:29][%mdl 8192]} (58... Kd5 $11) 59. Nc3 $19 {[%emt 0:00:02]} Nd5 $1 {[%emt 0:00:39]} 60. Ne2 {[%emt 0:01:56] [#]} (60. Nxa4+ Kd4 61. Kc2) 60... Nc7 $1 {[%emt 0:00:35]} 61. Nc3 {[%emt 0:00:48] [#]} Nb5 $1 {[%emt 0:00:22] Threatens to win with ...Nxc3.} 62. Nxa4+ {[%emt 0:00:04]} Kd4 {[%emt 0:00:06]} 63. Nb6 {[%emt 0:00:12]} Nxa3 {[%emt 0:00:29]} 64. Nd7 {[%emt 0:00:04]} c3+ {[%emt 0:00:29]} 65. Kc1 {[%emt 0:00:02]} Nc4 {[%emt 0:00:35]} 66. Nf8 {[%emt 0:00:31]} Nd2 {[%emt 0:00:30] Black mates.} 67. Kc2 {[%emt 0:00:59]} Nxf3 {[%emt 0:00:23]} 68. Ne6+ {[%emt 0:00:03]} Kc4 {[%emt 0:00:12] Weighted Error Value: White=0.38/Black=0.30} 0-1

[Event "ESP-chT Honor Division 2022"]
[Site "Linares"]
[Date "2022.09.21"]
[Round "5.18"]
[White "Ambartsumova, Karina"]
[Black "Garcia Martin, Marta"]
[Result "1/2-1/2"]
[ECO "D35"]
[WhiteElo "2386"]
[BlackElo "2325"]
[Annotator "TA"]
[PlyCount "110"]
[EventDate "2022.09.17"]
[EventType "team-tourn"]
[EventCountry "ESP"]
[SourceTitle "playchess.com"]
[Source "ChessBase"]
[SourceQuality "1"]
[TimeControl "5400+30"]

{[%evp 19,110,14,14,1,31,3,8,-1,0,0,14,0,16,22,34,25,33,16,71,74,69,78,79,88,82,74,85,73,83,89,84,0,0,0,0,0,0,0,0,0,0,0,0,0,0,0,0,0,9,9,9,15,15,15,15,10,17,0,0,0,17,16,16,25,45,0,0,0,0,0,0,0,0,0,0,0,0,0,0,0,0,0,0,0,0,0,0,0,0,0,0,0,0]} 1. d4 {[%emt 0:00:19]} Nf6 {[%emt 0:01:10]} 2. c4 {[%emt 0:00:08]} e6 {[%emt 0:00:03]} 3. Nc3 {[%emt 0:01:05]} d5 {[%emt 0:01:06]} 4. cxd5 {[%emt 0:01:54]} exd5 {[%emt 0:00:05]} 5. Bg5 {[%emt 0:00:43]} c6 {[%emt 0:00:44]} 6. e3 {[%emt 0:01:00]} Be7 {[%emt 0:00:30]} 7. Bd3 {[%emt 0:00:59]} Nbd7 {[%emt 0:02:42]} 8. Qc2 {[%emt 0:04:05]} Nh5 {[%emt 0:02:22]} 9. Bxe7 {[%emt 0:01:35]} Qxe7 {[%emt 0:00:05]} 10. Nge2 {[%emt 0:03:30]} g6 {[%emt 0:07:09]} 11. h3 {[%emt 0:06:43] D36: Queen's Gambit Declined: Exchange Variation: Main line (5 Bg5 c6 6 Qc2).} Nb6 {[%emt 0:12:05]} 12. O-O-O {[%emt 0:04:18]} Ng7 {[%emt 0:03:43] 12...Bd7 is not played anymore.} 13. g4 {[%emt 0:17:54][%cal Bg2g4,Bg4g5,Bg5h6][%mdl 32]} Bd7 {[%emt 0:07:14]} 14. Nf4 {[%emt 0:04:21]} Ne6 {[%emt 0:02:07]} 15. Rhe1 {[%emt 0:01:54] [#]} O-O $146 {[%emt 0:11:36]} ({Predecessor:} 15... g5 16. Nfe2 h6 17. Ng3 O-O-O 18. Nf5 Qf6 19. Qb3 Ng7 20. Nxg7 Qxg7 21. a4 Na8 {1-0 (28) Bojicic,A (2166)-Nikolic,M (1555) Kragujevac 2017}) 16. Nxe6 {[%emt 0:06:19]} Bxe6 {[%emt 0:01:21]} 17. f4 {[%emt 0:00:39]} f5 {[%emt 0:01:24]} 18. g5 {[%emt 0:03:57]} h5 {[%emt 0:10:02]} (18... Nc4 $11 {keeps the balance.}) 19. gxh6 $16 {[%emt 0:01:31] White is more active.} Kh7 {[%emt 0:11:40]} 20. Ne2 {[%emt 0:07:35]} Rac8 {[%emt 0:09:21]} 21. Kb1 {[%emt 0:02:19][%cal Oh3h4]} c5 {[%emt 0:05:31]} 22. dxc5 {[%emt 0:01:06]} Rxc5 {[%emt 0:00:20]} 23. Qd2 {[%emt 0:01:04]} Nc4 {[%emt 0:01:14]} 24. Bxc4 {[%emt 0:05:46]} dxc4 {[%emt 0:00:04] [#]} 25. Qd6 {[%emt 0:09:03] Prevents Bd5.} ({White should play} 25. Rg1 $1 $16) 25... Re8 $11 {[%emt 0:02:23]} 26. Qxe7+ {[%emt 0:00:48]} Rxe7 {[%emt 0:00:03]} 27. Rd6 {[%emt 0:00:53]} Rd5 {[%emt 0:01:22]} 28. Rxd5 {[%emt 0:04:24]} Bxd5 {[%emt 0:00:04][%mdl 4096] Endgame KRB-KRN} 29. Nd4 {[%emt 0:00:14]} Kxh6 {[%emt 0:00:26]} 30. Kc2 {[%emt 0:00:47]} Kg7 {[%emt 0:05:56]} 31. Rg1 {[%emt 0:00:52] [#] Strongly threatening Nxf5+.} Kf6 {[%emt 0:00:03]} 32. Rg3 {[%emt 0:00:05]} Rd7 {[%emt 0:01:31]} 33. Kc3 {[%emt 0:00:20]} Rd6 {[%emt 0:00:48]} 34. Nb5 {[%emt 0:00:51][%csl LRa7,LRd6]} Rd8 {[%emt 0:00:26]} 35. Nxa7 {[%emt 0:02:49]} Ra8 {[%emt 0:00:11]} 36. Nb5 {[%emt 0:00:06]} Rxa2 {[%emt 0:00:11]} 37. Rg1 {[%emt 0:00:23]} Ra5 {[%emt 0:01:05]} 38. Kb4 {[%emt 0:03:34]} Ra2 {[%emt 0:00:08]} 39. Kc3 {[%emt 0:00:20]} Ra5 {[%emt 0:00:04]} 40. Na3 {[%emt 0:02:39]} Ra8 {[%emt 0:01:30]} 41. Rd1 {[%emt 0:00:14]} Be6 {[%emt 0:00:36]} 42. Kb4 {[%emt 0:00:41]} Rh8 {[%emt 0:00:17] The position is equal.} 43. Nxc4 {[%emt 0:00:36]} Rxh3 {[%emt 0:00:36] aiming for ...Bxc4.} 44. Rd6 {[%emt 0:01:29]} Ke7 {[%emt 0:00:33] Threatens to win with ...Bxc4.} 45. Rb6 {[%emt 0:00:09]} Bxc4 {[%emt 0:00:24]} 46. Kxc4 {[%emt 0:00:05] Kd4 is the strong threat.} Rxe3 {[%emt 0:00:08]} 47. Rxg6 {[%emt 0:00:42] KR-KR} Re4+ {[%emt 0:00:21]} 48. Kc5 {[%emt 0:00:38]} Rxf4 {[%emt 0:00:06]} 49. Rg7+ {[%emt 0:00:11]} Ke6 {[%emt 0:00:33]} 50. Rxb7 {[%emt 0:00:08]} Rf1 {[%emt 0:00:50]} 51. b4 {[%emt 0:00:44]} f4 {[%emt 0:00:25] White must now prevent ...f3.} 52. Rb8 {[%emt 0:00:39]} f3 {[%emt 0:01:02]} 53. Rf8 {[%emt 0:00:13]} f2 {[%emt 0:00:18]} 54. Kb6 {[%emt 0:00:18]} Rb1 {[%emt 0:00:36]} 55. Rxf2 {[%emt 0:00:06]} Rxb4+ {[%emt 0:00:03] Weighted Error Value: White=0.06 (flawless) /Black=0.04 (flawless)} 1/2-1/2

[Event "ESP-chT Honor Division 2022"]
[Site "Linares"]
[Date "2022.09.21"]
[Round "5.19"]
[White "Cheparinov, Ivan"]
[Black "Gines Esteo, Pedro Antonio"]
[Result "1-0"]
[ECO "E06"]
[WhiteElo "2686"]
[BlackElo "2505"]
[Annotator "TA"]
[PlyCount "129"]
[EventDate "2022.09.17"]
[EventType "team-tourn"]
[EventCountry "ESP"]
[SourceTitle "playchess.com"]
[Source "ChessBase"]
[SourceQuality "1"]
[TimeControl "5400+30"]

{[%evp 15,129,0,5,0,13,11,5,7,56,7,7,5,15,0,6,13,30,25,36,38,49,52,77,92,144,136,135,135,139,133,143,159,154,117,127,123,127,129,116,99,120,119,130,122,130,108,122,0,127,115,114,110,128,98,100,93,107,96,108,104,111,111,108,102,120,116,131,134,126,112,136,141,123,133,116,0,0,0,131,107,248,56,45,0,266,253,215,226,479,472,479,478,808,731,733,558,556,470,1108,1054,5310,5193,2779,768,1353,0,2294,2247,1927,1820,2939,2337,4134,2352,2034,1910]} 1. d4 {[%emt 0:00:10]} Nf6 {[%emt 0:00:09]} 2. c4 e6 {[%emt 0:00:04]} 3. Nf3 {[%emt 0:00:10]} d5 {[%emt 0:00:28]} 4. g3 {[%emt 0:00:23]} Be7 {[%emt 0:00:56]} 5. Bg2 {[%emt 0:00:14]} O-O {[%emt 0:00:07]} 6. Nc3 {[%emt 0:00:31]} dxc4 {[%emt 0:00:57]} 7. Ne5 {[%emt 0:00:19]} c5 {[%emt 0:01:42]} 8. dxc5 {[%emt 0:00:39]} Qxd1+ {[%emt 0:00:13]} 9. Nxd1 {[%emt 0:00:18] E06: Closed Catalan: Early deviations.} Bxc5 {[%emt 0:00:05]} 10. Nc3 {[%emt 0:02:07]} Nc6 {[%emt 0:08:46]} 11. Nxc4 {[%emt 0:01:48] The position is equal.} Bd7 {[%emt 0:03:54] [#]} (11... Nd5 $11) 12. Be3 $146 {[%emt 0:05:06]} (12. O-O $14) ({Predecessor:} 12. O-O Rfd8 13. Rd1 Be8 14. Bf4 Rac8 15. Nd6 Bxd6 16. Bxd6 Na5 17. Bb4 Nc6 18. Ba3 Na5 19. Rxd8 Rxd8 20. b3 Bc6 {1-0 (54) Wang,Y (2690)-Kryvoruchko,Y (2689) Riadh 2017}) 12... Bxe3 $11 {[%emt 0:02:05]} 13. Nxe3 {[%emt 0:00:05]} Ne7 {[%emt 0:01:54]} 14. g4 {[%emt 0:27:46]} h6 {[%emt 0:25:12]} 15. h4 {[%emt 0:01:53]} g5 {[%emt 0:04:23]} 16. hxg5 {[%emt 0:03:30]} hxg5 {[%emt 0:00:06]} 17. Bxb7 {[%emt 0:01:02]} Rab8 {[%emt 0:00:17]} 18. Ne4 $1 $36 {[%emt 0:00:35][%mdl 2048] Black is under pressure.} Ne8 {[%emt 0:03:04]} 19. Nc5 {[%emt 0:02:26] White is much more active.} Rxb7 {[%emt 0:00:30]} 20. Nxb7 $16 {[%emt 0:00:03]} Bc6 {[%emt 0:00:06]} 21. Rh5 {[%emt 0:00:21]} Bxb7 {[%emt 0:00:22]} 22. Rxg5+ {[%emt 0:00:02]} Ng6 {[%emt 0:03:29]} 23. Rb5 {[%emt 0:05:58]} Nd6 {[%emt 0:00:55]} 24. Rb4 {[%emt 0:00:03] Threatens to win with Rd1.} Ne7 {[%emt 0:10:51]} 25. Rd1 {[%emt 0:00:21]} Nd5 {[%emt 0:00:21]} 26. Nxd5 {[%emt 0:00:26]} exd5 {[%emt 0:00:05]} 27. f3 {[%emt 0:01:04]} Re8 {[%emt 0:00:19]} 28. Kf2 {[%emt 0:02:41]} Re6 {[%emt 0:00:39]} 29. Rc1 {[%emt 0:15:36]} Re7 {[%emt 0:05:09] Against Rc7} 30. Rd4 {[%emt 0:03:26]} Nb5 {[%emt 0:00:41]} 31. Rb4 {[%emt 0:01:37]} Nd6 {[%emt 0:00:39]} 32. Rc5 {[%emt 0:01:40]} Kf8 {[%emt 0:03:14]} 33. Rd4 {[%emt 0:04:22]} Ne8 {[%emt 0:00:43]} 34. Ra5 {[%emt 0:02:10]} a6 {[%emt 0:00:37]} 35. Rb4 {[%emt 0:00:18]} Ng7 {[%emt 0:00:31]} 36. Ra3 {[%emt 0:02:00]} Ne6 {[%emt 0:00:26]} 37. Rab3 {[%emt 0:00:23]} Bc6 {[%emt 0:06:21]} 38. Rc3 {[%emt 0:00:54]} Bb7 {[%emt 0:04:47]} 39. e3 {[%emt 0:00:51]} Ke8 {[%emt 0:04:36]} 40. Kg3 {[%emt 0:01:40]} Kd8 {[%emt 0:02:03]} 41. f4 {[%emt 0:02:31][%cal Bf3f4,Bf4f5,Bf5f6][%mdl 32]} Rd7 {[%emt 0:00:51]} 42. Rb6 {[%emt 0:01:53]} Ke7 {[%emt 0:01:43]} 43. f5 {[%emt 0:01:37]} Ng5 {[%emt 0:00:45]} 44. f6+ {[%emt 0:01:42]} Kd8 {[%emt 0:00:18]} 45. Kf4 {[%emt 0:02:15]} Nh3+ {[%emt 0:01:35]} 46. Kg3 {[%emt 0:04:15]} Ng5 {[%emt 0:00:01] White must now prevent ...Ne4+.} 47. Rc2 {[%emt 0:00:36]} a5 {[%emt 0:04:45]} (47... Ne4+ $16 {might work better.} 48. Kf4 Rc7) 48. Kf4 $2 {[%emt 0:00:44]} (48. a4 $1 $18) 48... Nh3+ $1 $14 {[%emt 0:00:26]} 49. Kg3 $2 {[%emt 0:00:19]} (49. Ke5 $14) 49... Ng5 $18 {[%emt 0:00:01] [#] White stays focused until the end.} 50. a4 $1 {[%emt 0:00:04]} Rc7 {[%emt 0:00:46] [#]} 51. Rh2 {[%emt 0:00:35] Hoping for Kf4.} Bc6 $2 {[%emt 0:00:55]} (51... Ne4+ {was worth a try.} 52. Kf4 Rd7) 52. Kf4 {[%emt 0:00:51]} Ne4 {[%emt 0:01:49]} 53. g5 {[%emt 0:00:24]} Nc5 {[%emt 0:00:06]} (53... Bxa4 $2 54. Rh8+ Kd7 55. g6 fxg6 56. Rh7+ Kc8 57. f7 Rxf7+ 58. Rxf7) (53... Kd7 $142 54. g6 Rc8) 54. Rh8+ {[%emt 0:02:11]} Kd7 {[%emt 0:00:01]} 55. Ke5 {[%emt 0:00:54][%cal Og5g6] Strongly threatening g6!} Nd3+ {[%emt 0:00:40]} 56. Kf5 {[%emt 0:00:26]} Bxa4 {[%emt 0:01:23]} (56... Kd6 $142 57. Rd8+ Kc5) 57. Rf8 {[%emt 0:00:30]} Bc2 {[%emt 0:00:36]} 58. Rxf7+ {[%emt 0:00:06]} Kc8 {[%emt 0:00:02]} 59. Rf8+ {[%emt 0:01:05]} (59. g6 $142 Nc5+ 60. Kg5 Bxg6 61. Rf8+ Kd7 62. Kxg6) 59... Kd7 {[%emt 0:00:01]} 60. Rf7+ {[%emt 0:00:03]} (60. g6 $142 Nb4+ 61. Kg5 Bxg6 62. Kxg6) 60... Kc8 {[%emt 0:00:05]} 61. Rxc7+ {[%emt 0:00:02] White is clearly winning.} Kxc7 {[%emt 0:00:08]} 62. f7 {[%emt 0:00:58]} Nc5+ {[%emt 0:00:21]} 63. Kf6 {[%emt 0:00:51] Ke7 is the strong threat.} Kxb6 {[%emt 0:01:18]} 64. Ke7 {[%emt 0:00:03]} d4 {[%emt 0:01:24]} 65. exd4 {[%emt 0:00:16] Weighted Error Value: White=0.35/Black=0.19 (very precise)} 1-0

[Event "ESP-chT Honor Division 2022"]
[Site "Linares"]
[Date "2022.09.21"]
[Round "5.20"]
[White "Ayats Llobera, Gerard"]
[Black "Santos Latasa, Jaime"]
[Result "1/2-1/2"]
[ECO "B90"]
[WhiteElo "2451"]
[BlackElo "2680"]
[Annotator "TA"]
[PlyCount "83"]
[EventDate "2022.09.17"]
[EventType "team-tourn"]
[EventCountry "ESP"]
[SourceTitle "playchess.com"]
[Source "ChessBase"]
[SourceQuality "1"]
[TimeControl "5400+30"]

{[%evp 24,83,19,0,0,0,24,0,0,0,0,0,6,-27,20,-20,-9,-70,-22,-16,-14,-33,0,0,-12,-12,0,0,0,14,0,0,27,7,0,0,27,0,27,14,56,0,0,0,8,9,8,8,10,8,29,34,0,7,0,26,46,30,114,0,179,116]} 1. e4 c5 2. Nf3 d6 3. d4 cxd4 4. Nxd4 Nf6 5. Nc3 a6 6. Be3 e5 7. Nb3 Be7 8. f3 Be6 9. Qd2 O-O 10. O-O-O Nbd7 11. g4 {[%cal Bg2g4,Bg4g5][%mdl 32]} b5 12. g5 Nh5 $1 {[%mdl 4] is currently scoring better than 12...b4.} 13. Nd5 Bxd5 {B90: Sicilian Najdorf: Unusual White 6th moves, 6 Be3 Ng4 and 6 Be3 e5.} 14. exd5 f6 {[%cal Rf6g5]} 15. gxf6 Bxf6 {The position is equal.} 16. Na5 Nf4 17. Nc6 Qc7 18. Bd3 Nb6 (18... Nxd3+ $142 19. Qxd3 Nb8) 19. Bxb6 Qxb6 20. Be4 {[#]} (20. Qb4 $1 $11) 20... Bh4 $146 ({Better is} 20... Nh3 $1 $15 21. Qb4 Qc7) ({Predecessor:} 20... Nh3 21. Qb4 Nf2 22. Qxd6 Qe3+ 23. Kb1 Nxd1 24. Qe6+ Kh8 25. Rxd1 Qe2 26. Rc1 Qxh2 {1-0 (52) Robson,R (2670)-Bok,B (2640) chess24.com INT 2020}) 21. Kb1 $11 a5 22. Rhf1 b4 23. c3 bxc3 24. Qxc3 Kh8 25. a4 Nh5 26. Qa3 Qc7 27. Qd3 Nf6 28. Rc1 {[%cal Oc6e5]} (28. f4 $5 {[%cal Rf4e5]} Nxe4 29. Qxe4 exf4 30. Rxf4 Rxf4 31. Qxf4 $14) 28... Bg5 29. Rc2 {[%cal Oc6d4] aiming for Nd4!} Qb6 {Prevents Nd4.} 30. Ka2 Rf7 31. Rb1 Rb7 32. Rc3 ({White should try} 32. Qa3 $1 $14) 32... Bf4 33. h3 ({But not} 33. Rb3 Qxb3+ 34. Qxb3 Rxb3 35. Kxb3 Bxh2 $15) 33... Qf2 $132 {[%mdl 2048] Black has counterplay} 34. Rb3 Rxb3 35. Qxb3 Nxe4 36. fxe4 {[%cal Oc6a5]} Qe2 37. Qb7 {[%cal Rb7a8] [#]} Rg8 38. Qb5 Qxe4 39. Nxa5 Ra8 40. Nc4 h6 {[#]} (40... Qc2 $11) 41. b3 (41. Qc6 $1 $16 {[%cal Rc6a8]} Rf8 42. b3 (42. Nxd6 Qd3 $14)) 41... Be3 $2 (41... Rc8 $11 {and Black stays safe.}) 42. Qc6 {Weighted Error Value: White=0.16 (very precise) /Black=0.27 (precise)} (42. Nxd6 $18 Qg2+ 43. Rb2 Qxh3 44. Qd3) 1/2-1/2